bitfinex-derivatives/quotes_SOLF0:USTF0_20220108
["timestamp","ask_amount","ask_price","bid_price","bid_amount"]
[1641676473688,24.0,139.36,139.24,1.88941508]
[1641676473888,10.28299216,139.34,139.23,1.88941508]
[1641676474287,17.67900858,139.4,139.29,4.0]
[1641676474490,10.5,139.4,139.29,6.081]
[1641676474687,38.16479,139.4,139.29,33.74579]
[1641676474887,10.28033389,139.39,139.29,33.74579]
[1641676475089,10.28033389,139.39,139.3,1.88941508]
[1641676475989,14.28033389,139.39,139.3,1.88941508]
[1641676476190,20.0,139.38,139.3,1.88941508]
[1641676476391,30.28033389,139.38,139.3,1.88941508]
[1641676476589,27.66479,139.34,139.3,1.88941508]
[1641676477191,27.66479,139.34,139.26,1.88941508]
[1641676478191,47.66479,139.34,139.26,1.88941508]
[1641676478391,47.66479,139.34,139.24,1.88941508]
[1641676478595,27.66479,139.31,139.24,1.88941508]
[1641676480600,27.66479,139.34,139.24,1.88941508]
[1641676480795,27.66479,139.34,139.25,4.0]
[1641676480995,27.66479,139.36,139.26,4.0]
[1641676481195,17.67900858,139.4,139.29,4.0]
[1641676481397,129.0898,139.42,139.29,18.7714326]
[1641676481598,27.17463051,139.48,139.34,4.0]
[1641676481799,63.7865,139.47,139.34,12.657]
[1641676482000,10.27787892,139.43,139.34,8.657]
[1641676482201,10.27787892,139.43,139.38,7.17205766]
[1641676482398,10.27787892,139.43,139.38,8.266]
[1641676482598,24.0,139.45,139.38,8.266]
[1641676482798,37.94266892,139.46,139.38,8.266]
[1641676482998,10.27787892,139.44,139.38,8.266]
[1641676483401,10.27787892,139.44,139.33,38.83916314]
[1641676483600,74.77687208,139.52,139.41,4.0]
[1641676483800,85.71687208,139.52,139.41,8.052]
[1641676484007,85.71687208,139.52,139.42,4.07348767]
[1641676484401,4.0,139.5,139.42,4.07348767]
[1641676484601,27.66479,139.46,139.42,4.07348767]
[1641676484803,27.66479,139.46,139.34,7.17385846]
[1641676485203,27.66479,139.46,139.35,4.07480567]
[1641676486601,27.66479,139.46,139.35,9.83880567]
[1641676487103,27.66479,139.46,139.36,4.07480567]
[1641676487603,27.66479,139.46,139.37,8.07480567]
[1641676487805,27.66479,139.48,139.38,11.17205766]
[1641676488005,8.0,139.49,139.38,18.67505766]
[1641676488406,8.0,139.49,139.39,4.0]
[1641676488605,8.0,139.49,139.41,27.66479]
[1641676488806,27.66479,139.51,139.41,33.53479]
[1641676489605,27.66479,139.51,139.42,4.07480567]
[1641676490407,27.66479,139.51,139.41,27.66479]
[1641676491907,27.66479,139.51,139.42,3.76912199]
[1641676493610,96.09319,139.54,139.43,4.0]
[1641676493812,27.66479,139.54,139.43,4.0]
[1641676494211,27.66479,139.54,139.44,4.0]
[1641676494410,27.66479,139.54,139.46,4.0]
[1641676494710,102.80064777,139.57,139.47,27.66479]
[1641676494910,10.58,139.59,139.49,4.0]
[1641676495112,10.58,139.59,139.48,5.791]
[1641676495311,10.58,139.59,139.48,3.76912199]
[1641676495510,10.58,139.59,139.48,7.76912199]
[1641676495710,10.58,139.59,139.48,3.76912199]
[1641676496311,18.233,139.59,139.48,3.76912199]
[1641676496512,42.233,139.59,139.48,3.76912199]
[1641676496813,27.66479,139.57,139.48,3.76912199]
[1641676497616,12.0,139.58,139.48,3.76912199]
[1641676497814,4.0,139.58,139.48,3.76912199]
[1641676498014,8.0,139.56,139.48,3.76912199]
[1641676498715,24.0,139.54,139.48,3.76912199]
[1641676498916,29.344,139.54,139.42,64.2175]
[1641676499114,29.344,139.54,139.41,42.75829736]
[1641676499315,5.344,139.54,139.41,46.75829736]
[1641676499514,5.344,139.54,139.43,4.07297367]
[1641676499714,5.344,139.54,139.43,8.07297367]
[1641676499916,5.344,139.54,139.43,4.0]
[1641676500218,27.66479,139.55,139.46,7.16768806]
[1641676500415,69.7049,139.58,139.46,12.88968806]
[1641676500616,97.31979,139.59,139.47,4.0]
[1641676500818,97.31979,139.59,139.5,27.66479]
[1641676501019,27.66479,139.59,139.5,35.60779]
[1641676502320,27.66479,139.59,139.5,27.66479]
[1641676502519,27.66479,139.59,139.48,27.66479]
[1641676502721,4.0,139.5,139.42,44.54929736]
[1641676502919,7.384,139.5,139.42,15.09350736]
[1641676503119,7.384,139.5,139.41,15.09350736]
[1641676503923,7.384,139.5,139.42,4.07357382]
[1641676504923,7.384,139.5,139.41,4.07357382]
[1641676505524,7.384,139.5,139.43,4.07357382]
[1641676505723,7.17437314,139.49,139.43,4.07357382]
[1641676505923,7.17437314,139.49,139.41,4.07357382]
[1641676506126,31.17540272,139.47,139.41,7.382e-05]
[1641676506325,4.0,139.45,139.35,15.09350736]
[1641676506523,20.0,139.44,139.35,8.09350736]
[1641676506724,27.66479,139.41,139.35,8.09350736]
[1641676506924,35.87279,139.41,139.35,8.09350736]
[1641676507123,35.87279,139.41,139.32,39.82385315]
[1641676507324,35.87279,139.41,139.31,34.84019272]
[1641676507524,8.208,139.41,139.33,4.07534265]
[1641676507926,8.208,139.41,139.32,4.07534265]
[1641676508425,8.208,139.41,139.34,2.75970476]
[1641676508826,27.66479,139.4,139.35,4.07534265]
[1641676509029,34.84379858,139.4,139.35,4.07534265]
[1641676509625,38.84379858,139.4,139.35,4.07534265]
[1641676509827,34.84379858,139.4,139.33,2.75970476]
[1641676510128,42.84379858,139.4,139.33,2.75970476]
[1641676510528,42.84379858,139.4,139.29,27.66479]
[1641676510728,27.66479,139.37,139.34,4.07607388]
[1641676510927,36.45479,139.37,139.34,4.07607388]
[1641676511127,36.45479,139.37,139.3,4.07607388]
[1641676511428,4.0,139.36,139.3,4.07607388]
[1641676511630,40.45479,139.37,139.3,4.07607388]
[1641676511828,4.0,139.36,139.3,4.07607388]
[1641676512127,40.45479,139.37,139.26,4.07607388]
[1641676512329,8.0,139.36,139.26,4.07607388]
[1641676512528,13.909,139.36,139.26,4.07607388]
[1641676512729,27.66479,139.31,139.26,4.07607388]
[1641676512929,36.32579,139.31,139.26,4.07607388]
[1641676513731,36.32579,139.31,139.27,2.76494886]
[1641676514331,40.32579,139.31,139.27,2.76494886]
[1641676514531,20.0,139.29,139.27,4.886e-05]
[1641676514731,38.84973036,139.28,139.18,39.82385315]
[1641676514931,20.0,139.26,139.18,39.82385315]
[1641676515733,50.84173036,139.28,139.18,39.82385315]
[1641676515932,54.84173036,139.28,139.16,4.0]
[1641676516333,54.84173036,139.28,139.19,2.27649864]
[1641676516532,27.18623118,139.26,139.19,2.27649864]
[1641676516733,27.66479,139.21,139.19,2.27649864]
[1641676516932,35.00279,139.21,139.15,2.27649864]
[1641676518038,35.00279,139.21,139.11,2.27649864]
[1641676518740,27.66479,139.16,139.11,2.27649864]
[1641676519940,15.1864894,139.25,139.15,4.0]
[1641676520138,15.1864894,139.25,139.17,4.0]
[1641676520340,7.1864894,139.25,139.17,4.0]
[1641676520539,7.1864894,139.25,139.18,2.27649864]
[1641676520844,27.66479,139.24,139.18,2.27649864]
[1641676521041,10.9,139.31,139.23,4.0]
[1641676521240,198.9537,139.42,139.23,7.712]
[1641676521442,198.9537,139.42,139.28,4.0]
[1641676521646,198.9537,139.42,139.28,10.788]
[1641676521845,198.9537,139.42,139.28,6.788]
[1641676522043,3.69077177,139.36,139.29,2.27649864]
[1641676522648,3.69077177,139.36,139.24,2.27649864]
[1641676522848,8.0,139.35,139.26,27.66479]
[1641676523149,28.0,139.35,139.26,27.66479]
[1641676523351,20.0,139.32,139.26,27.66479]
[1641676523548,20.0,139.32,139.23,27.66479]
[1641676524048,3.69077177,139.31,139.23,27.66479]
[1641676524248,20.0,139.28,139.14,7.18545664]
[1641676524450,7.18726417,139.26,139.16,4.0]
[1641676524850,27.66479,139.26,139.19,27.66479]
[1641676525051,3.69077177,139.25,139.19,27.66479]
[1641676525652,27.66479,139.26,139.19,27.66479]
[1641676525853,27.66479,139.26,139.2,2.27815057]
[1641676526251,27.66479,139.28,139.2,6.27815057]
[1641676526452,8.0,139.31,139.2,2.27815057]
[1641676526652,8.0,139.31,139.2,10.64515057]
[1641676526852,8.0,139.31,139.21,2.27815057]
[1641676527552,7.7701761,139.3,139.25,4.0]
[1641676527752,7.7701761,139.3,139.21,6.27815057]
[1641676527952,8.0,139.31,139.26,4.0]
[1641676528455,8.0,139.31,139.24,8.267]
[1641676528855,15.322,139.31,139.19,27.66479]
[1641676529056,15.322,139.31,139.19,31.66479]
[1641676529256,7.77066001,139.3,139.19,27.66479]
[1641676529757,8.0,139.31,139.23,4.0]
[1641676529955,8.0,139.31,139.2,2.27653215]
[1641676530156,8.0,139.31,139.24,2.27653215]
[1641676530556,8.0,139.31,139.25,4.0]
[1641676530959,8.0,139.31,139.26,27.66479]
[1641676531157,8.0,139.31,139.26,29.94132215]
[1641676531558,8.0,139.31,139.26,2.27653215]
[1641676531758,8.0,139.31,139.27,2.27653215]
[1641676531958,20.0,139.28,139.17,4.0]
[1641676532161,7.333,139.28,139.19,2.27754433]
[1641676532559,7.77213748,139.27,139.16,7.18442417]
[1641676532758,15.77213748,139.27,139.18,4.0]
[1641676532964,15.77213748,139.27,139.19,27.66479]
[1641676533158,7.77213748,139.26,139.19,29.9022537]
[1641676533560,7.77213748,139.26,139.2,2.2374637]
[1641676534158,7.77213748,139.26,139.22,4.0]
[1641676534559,8.0,139.27,139.23,2.2374637]
[1641676534960,27.66479,139.28,139.23,2.2374637]
[1641676535159,27.66479,139.28,139.23,13.7914637]
[1641676535960,66.9642,139.33,139.25,4.0]
[1641676536162,75.25097082,139.36,139.29,4.0]
[1641676536360,4.99337082,139.36,139.3,4.0]
[1641676536562,4.99337082,139.36,139.32,4.0]
[1641676536762,4.99337082,139.36,139.32,6.063]
[1641676536962,4.99337082,139.36,139.34,27.66479]
[1641676537362,4.99337082,139.36,139.32,6.063]
[1641676537563,4.99337082,139.41,139.32,6.063]
[1641676537962,10.44428807,139.4,139.32,6.063]
[1641676538365,10.44428807,139.4,139.33,4.0]
[1641676538562,10.44428807,139.4,139.32,6.063]
[1641676538965,10.44428807,139.41,139.34,4.0]
[1641676539164,10.44428807,139.41,139.33,29.44315215]
[1641676539463,10.44428807,139.41,139.33,31.66479]
[1641676539863,10.44428807,139.42,139.33,31.66479]
[1641676540064,10.44428807,139.42,139.33,27.66479]
[1641676540263,10.44428807,139.42,139.33,31.66479]
[1641676540463,10.44428807,139.42,139.36,4.0]
[1641676540763,10.44428807,139.42,139.37,4.0]
[1641676540968,10.44428807,139.42,139.36,8.859]
[1641676541365,10.44428807,139.42,139.36,12.859]
[1641676541564,10.44428807,139.42,139.36,8.859]
[1641676542563,10.44428807,139.42,139.36,12.859]
[1641676543363,10.44428807,139.42,139.36,4.0]
[1641676543964,10.44428807,139.42,139.33,27.66479]
[1641676544163,10.44428807,139.42,139.4,4.0]
[1641676544363,10.44428807,139.42,139.4,6.168]
[1641676544565,8.807e-05,139.42,139.41,4.0]
[1641676544763,4.99337082,139.45,139.41,4.0]
[1641676544965,7.082e-05,139.45,139.44,55.32958]
[1641676545165,7.082e-05,139.45,139.42,7.17077193]
[1641676545365,6.701,139.51,139.38,11.17282932]
[1641676545566,6.701,139.51,139.39,4.0]
[1641676545964,6.701,139.51,139.39,8.07480287]
[1641676546166,8.0,139.5,139.39,4.07480287]
[1641676546364,8.0,139.5,139.38,7.17282932]
[1641676546365,8.0,139.5,139.41,4.0]
[1641676546966,35.66479,139.5,139.41,4.0]
[1641676547465,55.66479,139.5,139.41,4.0]
[1641676547864,55.66479,139.5,139.38,34.83761932]
[1641676548467,55.66479,139.5,139.39,4.07505166]
[1641676548867,55.66479,139.5,139.38,34.83761932]
[1641676549367,55.66479,139.5,139.4,4.0]
[1641676549570,55.66479,139.5,139.38,34.83761932]
[1641676549967,55.66479,139.5,139.36,27.66479]
[1641676549968,20.0,139.45,139.36,27.66479]
[1641676550170,25.871,139.45,139.36,27.66479]
[1641676550369,25.871,139.45,139.33,4.0]
[1641676550668,20.0,139.42,139.33,4.0]
[1641676550868,27.648,139.42,139.32,4.0]
[1641676551069,27.66479,139.41,139.32,31.66479]
[1641676551470,27.66479,139.41,139.33,4.07683913]
[1641676552070,35.66479,139.41,139.33,4.07683913]
[1641676552670,35.66479,139.41,139.35,4.0]
[1641676552671,8.0,139.41,139.35,4.0]
[1641676553272,8.0,139.41,139.36,4.07683913]
[1641676553773,8.0,139.41,139.35,4.0]
[1641676553973,8.0,139.41,139.32,34.84070762]
[1641676554174,8.0,139.41,139.33,4.0]
[1641676554474,8.0,139.41,139.32,34.84070762]
[1641676554675,47.66479,139.43,139.41,0.15229932]
[1641676554875,47.66479,139.43,139.34,4.07654496]
[1641676555075,55.08779,139.43,139.32,34.84070762]
[1641676555476,55.08779,139.43,139.33,4.07668336]
[1641676555675,35.08779,139.43,139.34,4.0]
[1641676555875,35.08779,139.43,139.36,4.0]
[1641676556076,69.1091,139.44,139.35,7.17437314]
[1641676556277,27.66479,139.46,139.37,4.0]
[1641676556476,27.66479,139.46,139.37,8.07668336]
[1641676556679,27.66479,139.46,139.38,4.0]
[1641676556879,27.66479,139.46,139.38,4.07668336]
[1641676557078,183.73889,139.49,139.38,4.07668336]
[1641676557378,183.73889,139.49,139.37,27.66479]
[1641676557579,183.73889,139.49,139.37,31.66479]
[1641676557778,183.73889,139.49,139.38,4.07668336]
[1641676558078,183.73889,139.49,139.38,8.07668336]
[1641676558378,183.73889,139.49,139.38,4.07668336]
[1641676558579,183.73889,139.49,139.38,8.07668336]
[1641676558780,183.73889,139.49,139.37,27.66479]
[1641676558982,163.73889,139.49,139.42,4.0]
[1641676559181,10.74,139.5,139.45,4.0]
[1641676559380,10.74,139.5,139.45,12.42]
[1641676559580,15.14732319,139.53,139.45,12.42]
[1641676559781,15.14732319,139.53,139.45,8.42]
[1641676560181,15.14732319,139.53,139.45,12.42]
[1641676560583,15.14732319,139.53,139.46,4.0]
[1641676560783,10.74,139.54,139.46,4.0]
[1641676561185,27.66479,139.53,139.46,4.0]
[1641676561684,27.66479,139.53,139.42,14.02502904]
[1641676561883,27.66479,139.53,139.41,27.66479]
[1641676562084,7.17385846,139.52,139.41,27.66479]
[1641676562285,20.0,139.51,139.37,31.66479]
[1641676562483,27.17591762,139.48,139.37,27.66479]
[1641676562685,20.0,139.44,139.34,15.14732319]
[1641676562883,20.0,139.41,139.34,15.14732319]
[1641676563084,27.66479,139.38,139.34,15.14732319]
[1641676563383,34.24679,139.38,139.34,15.14732319]
[1641676563682,34.24679,139.38,139.34,14.49052319]
[1641676563883,34.24679,139.38,139.3,4.0]
[1641676564782,34.24679,139.38,139.31,4.07758272]
[1641676564985,6.582,139.38,139.36,4.0]
[1641676565183,67.48864315,139.44,139.35,7.401]
[1641676565383,67.48864315,139.44,139.36,4.0]
[1641676565986,67.48864315,139.44,139.37,4.0]
[1641676566186,67.48864315,139.44,139.36,4.0]
[1641676566387,73.24164315,139.44,139.34,27.66479]
[1641676566585,73.24164315,139.44,139.35,4.0]
[1641676566586,2.28821105,139.43,139.35,4.0]
[1641676566787,10.28821105,139.43,139.35,4.0]
[1641676567188,10.28821105,139.43,139.34,27.66479]
[1641676567387,2.28821105,139.42,139.34,27.66479]
[1641676568388,8.0,139.43,139.34,27.66479]
[1641676569488,8.0,139.43,139.33,4.0]
[1641676570291,2.2886861,139.42,139.33,4.0]
[1641676570491,8.1206861,139.42,139.33,4.0]
[1641676570692,8.1206861,139.42,139.4,4.0]
[1641676571093,2.2886861,139.42,139.4,9.321]
[1641676571292,70.1066,139.47,139.41,4.0]
[1641676571592,67.48864315,139.49,139.4,32.98579]
[1641676571794,67.48864315,139.49,139.43,4.0]
[1641676572393,2.28688074,139.48,139.43,4.0]
[1641676572994,2.28688074,139.48,139.47,4.0]
[1641676573295,89.0,139.52,139.47,41.63479]
[1641676573694,89.0,139.52,139.49,4.0]
[1641676573895,39.82385315,139.54,139.49,4.0]
[1641676574496,45.53659048,139.56,139.49,4.0]
[1641676574901,45.53659048,139.56,139.51,4.0]
[1641676575097,27.66479,139.58,139.54,4.0]
[1641676575298,39.82385315,139.59,139.54,5.712]
[1641676575498,39.82385315,139.6,139.54,5.712]
[1641676575701,39.82385315,139.6,139.56,4.0]
[1641676576099,39.82385315,139.6,139.58,4.0]
[1641676576299,39.82385315,139.6,139.54,5.712]
[1641676576502,39.82385315,139.6,139.52,4.0]
[1641676576701,39.82385315,139.6,139.57,4.0]
[1641676576903,20.0,139.62,139.51,34.83093712]
[1641676577100,26.252,139.62,139.51,27.66479]
[1641676577303,27.66479,139.59,139.51,27.66479]
[1641676577500,36.31879,139.59,139.51,27.66479]
[1641676577701,36.31879,139.59,139.52,4.0]
[1641676578905,36.31879,139.59,139.54,4.0]
[1641676579708,36.31879,139.59,139.51,27.66479]
[1641676579907,165.6661,139.64,139.57,4.0]
[1641676580108,99.62,139.64,139.57,4.0]
[1641676580408,99.62,139.64,139.56,4.0]
[1641676580609,99.62,139.64,139.54,4.0]
[1641676580808,108.066,139.64,139.54,4.0]
[1641676581009,20.0,139.6,139.51,27.66479]
[1641676581212,27.66479,139.56,139.49,7.16743119]
[1641676581412,36.38879,139.56,139.47,27.66479]
[1641676581611,36.38879,139.56,139.52,4.0]
[1641676581811,8.724,139.56,139.51,4.0]
[1641676582011,8.0,139.59,139.55,4.0]
[1641676582213,39.82385315,139.62,139.58,4.0]
[1641676582413,39.82385315,139.62,139.57,4.0]
[1641676582612,39.82385315,139.62,139.56,4.0]
[1641676582812,39.82385315,139.62,139.57,4.0]
[1641676583011,39.82385315,139.62,139.53,4.0]
[1641676583312,38.28479,139.64,139.58,4.0]
[1641676583514,38.28479,139.64,139.55,27.66479]
[1641676584314,38.28479,139.64,139.58,4.0]
[1641676584515,10.74,139.67,139.61,4.0]
[1641676584717,136.8728,139.69,139.61,5.693]
[1641676584913,68.3205,139.69,139.61,5.693]
[1641676585113,68.3205,139.69,139.62,4.0]
[1641676585314,95.98529,139.69,139.62,4.0]
[1641676585514,128.82385315,139.7,139.66,4.0]
[1641676585715,39.82385315,139.72,139.69,4.0]
[1641676585913,39.82385315,139.72,139.69,8.573]
[1641676586117,10.88,139.77,139.71,4.0]
[1641676586315,98.86146646,139.81,139.74,4.0]
[1641676586513,98.86146646,139.81,139.76,4.0]
[1641676586913,98.86146646,139.81,139.74,7.931]
[1641676587113,98.86146646,139.81,139.77,1.27143422]
[1641676587314,98.86146646,139.81,139.77,9.60343422]
[1641676587513,23.68910067,139.84,139.8,1.27143422]
[1641676587714,23.68910067,139.84,139.83,1.27143422]
[1641676587914,23.68910067,139.84,139.83,9.16843422]
[1641676588517,14.31060649,139.84,139.83,7.897]
[1641676588717,22.72856578,139.84,139.74,3.05743422]
[1641676589018,2.72856578,139.82,139.73,27.66479]
[1641676589216,8.0,139.83,139.73,28.93622422]
[1641676589417,8.0,139.83,139.74,4.0]
[1641676589616,8.0,139.83,139.75,1.27143422]
[1641676589819,8.0,139.83,139.76,1.27143422]
[1641676590016,8.0,139.83,139.73,27.66479]
[1641676590017,10.72856578,139.83,139.73,27.66479]
[1641676590217,8.0,139.83,139.73,28.93622422]
[1641676590618,15.15819613,139.83,139.73,28.93622422]
[1641676590818,2.72856578,139.77,139.7,28.93622422]
[1641676591018,2.72856578,139.77,139.67,7.15793994]
[1641676591019,2.72856578,139.76,139.66,3.05943422]
[1641676591219,9.56556578,139.77,139.64,28.63175978]
[1641676591420,27.66479,139.75,139.66,27.66479]
[1641676591621,27.66479,139.75,139.67,1.27143422]
[1641676591919,35.66479,139.75,139.7,1.27143422]
[1641676592321,35.66479,139.75,139.66,31.66479]
[1641676592720,35.66479,139.75,139.66,27.66479]
[1641676593119,43.94279,139.75,139.66,27.66479]
[1641676593520,2.72856578,139.71,139.66,27.66479]
[1641676593721,9.69656578,139.71,139.62,1.27143422]
[1641676593922,9.69656578,139.71,139.6,7.16178472]
[1641676594121,6.968,139.71,139.63,1.27143422]
[1641676594422,6.968,139.71,139.66,1.27143422]
[1641676594622,6.968,139.71,139.65,1.27143422]
[1641676594823,35.66479,139.75,139.65,7.316]
[1641676595022,9.89163301,139.73,139.65,7.316]
[1641676595222,2.72856578,139.72,139.65,7.316]
[1641676595423,27.66479,139.71,139.65,7.316]
[1641676595624,8.0,139.72,139.65,7.316]
[1641676595823,8.0,139.72,139.65,8.58743422]
[1641676596525,8.0,139.72,139.65,7.316]
[1641676596724,8.0,139.72,139.65,8.58743422]
[1641676596924,8.0,139.72,139.62,27.66479]
[1641676596925,8.0,139.72,139.63,1.27143422]
[1641676597125,16.11156578,139.72,139.64,1.27143422]
[1641676597328,27.66479,139.71,139.62,27.66479]
[1641676597926,30.39335578,139.71,139.64,1.27143422]
[1641676598127,2.72856578,139.7,139.62,27.66479]
[1641676598327,2.72856578,139.7,139.62,28.93622422]
[1641676598529,2.72856578,139.66,139.6,27.66479]
[1641676598728,22.72856578,139.63,139.55,1.27143422]
[1641676598929,7.422,139.63,139.52,7.16563362]
[1641676599131,7.422,139.63,139.54,1.27143422]
[1641676599329,7.422,139.63,139.56,1.27143422]
[1641676599530,7.422,139.63,139.52,34.83042362]
[1641676599531,7.422,139.63,139.55,1.27143422]
[1641676599932,7.422,139.63,139.52,34.83042362]
[1641676600131,27.66479,139.64,139.56,1.27143422]
[1641676600332,27.66479,139.64,139.52,34.83042362]
[1641676600633,27.66479,139.64,139.52,38.83042362]
[1641676600833,27.66479,139.64,139.58,1.27143422]
[1641676601233,27.66479,139.64,139.57,1.27143422]
[1641676601432,27.66479,139.64,139.52,34.83042362]
[1641676601733,8.0,139.63,139.53,1.27143422]
[1641676602134,10.72856578,139.63,139.53,1.27143422]
[1641676602435,10.72856578,139.63,139.52,34.83042362]
[1641676602634,2.72856578,139.62,139.54,1.27143422]
[1641676602835,2.72856578,139.6,139.5,27.66479]
[1641676603235,72.7174,139.62,139.5,27.66479]
[1641676603436,30.39335578,139.58,139.5,27.66479]
[1641676603636,38.27135578,139.58,139.5,27.66479]
[1641676603837,2.72856578,139.57,139.5,27.66479]
[1641676604041,2.72856578,139.53,139.46,27.66479]
[1641676604237,11.33856578,139.53,139.44,1.27143422]
[1641676604439,8.61,139.53,139.43,1.27143422]
[1641676604638,2.72856578,139.52,139.43,1.27143422]
[1641676604837,31.33856578,139.53,139.43,1.27143422]
[1641676605040,31.33856578,139.53,139.39,7.17257208]
[1641676605041,10.72856578,139.52,139.39,7.17257208]
[1641676605238,2.72856578,139.51,139.42,1.27143422]
[1641676605439,30.39335578,139.5,139.42,27.66479]
[1641676605640,22.72856578,139.48,139.37,14.99381174]
[1641676605840,2.72856578,139.47,139.37,14.99381174]
[1641676606140,2.72856578,139.45,139.37,14.99381174]
[1641676606340,2.72856578,139.45,139.34,14.99381174]
[1641676606540,65.3398,139.46,139.37,1.27143422]
[1641676606740,40.71262193,139.5,139.34,14.99381174]
[1641676606940,32.71262193,139.5,139.43,4.0]
[1641676607240,5.04783193,139.5,139.48,1.27143422]
[1641676607442,5.04783193,139.5,139.49,27.66479]
[1641676607644,5.04783193,139.5,139.47,27.66479]
[1641676607842,5.04783193,139.5,139.46,1.27143422]
[1641676608642,17.72237752,139.53,139.46,1.27143422]
[1641676608643,2.72856578,139.53,139.46,1.27143422]
[1641676608843,2.72856578,139.52,139.4,7.17205766]
[1641676609044,2.72856578,139.52,139.44,1.27143422]
[1641676609243,2.72856578,139.51,139.43,1.27143422]
[1641676609643,2.72856578,139.51,139.4,34.83684766]
[1641676609845,2.72856578,139.51,139.43,1.27143422]
[1641676610247,5.04783193,139.54,139.5,1.27143422]
[1641676610446,5.04783193,139.54,139.5,14.8664039]
[1641676610647,5.04783193,139.54,139.53,1.27143422]
[1641676610845,5.04783193,139.54,139.53,8.09043422]
[1641676611449,2.72856578,139.62,139.53,8.09043422]
[1641676611646,230.57568771,139.63,139.53,8.09043422]
[1641676611847,227.84712193,139.63,139.53,6.819]
[1641676612046,227.84712193,139.63,139.55,1.27143422]
[1641676612247,165.51238771,139.63,139.53,6.819]
[1641676612749,165.51238771,139.63,139.55,1.27143422]
[1641676612947,5.04783193,139.62,139.53,1.27143422]
[1641676613348,15.77639771,139.62,139.53,1.27143422]
[1641676613647,23.53539771,139.62,139.53,1.27143422]
[1641676613847,2.72856578,139.61,139.53,1.27143422]
[1641676614246,43.53539771,139.62,139.51,27.66479]
[1641676614447,20.80683193,139.62,139.51,27.66479]
[1641676614647,20.80683193,139.62,139.53,1.27143422]
[1641676615250,20.80683193,139.62,139.56,1.27143422]
[1641676615448,5.04783193,139.62,139.58,1.27143422]
[1641676615648,5.04783193,139.62,139.56,27.66479]
[1641676616448,2.72856578,139.61,139.51,27.66479]
[1641676616649,2.72856578,139.58,139.47,7.16820186]
[1641676616849,8.455,139.58,139.5,1.27143422]
[1641676617249,11.18356578,139.58,139.44,11.17000072]
[1641676617450,27.66479,139.56,139.51,1.27143422]
[1641676618051,27.66479,139.56,139.49,4.0]
[1641676618252,8.0,139.6,139.55,1.27143422]
[1641676618551,14.99381174,139.61,139.56,1.27143422]
[1641676618751,14.99381174,139.61,139.51,13.5374039]
[1641676618951,5.04783193,139.62,139.51,13.5374039]
[1641676619152,5.04783193,139.62,139.54,1.27143422]
[1641676619552,27.66479,139.6,139.54,1.27143422]
[1641676620156,38.32835578,139.6,139.49,34.83196434]
[1641676620355,38.32835578,139.6,139.46,28.93622422]
[1641676620553,2.72856578,139.59,139.46,28.93622422]
[1641676620754,2.72856578,139.59,139.46,27.66479]
[1641676621155,2.72856578,139.55,139.46,27.66479]
[1641676621356,6.432,139.55,139.47,1.27143422]
[1641676621556,27.66479,139.54,139.47,1.27143422]
[1641676621957,6.432,139.55,139.48,4.0]
[1641676622157,2.27022367,139.58,139.5,1.27143422]
[1641676622358,2.27022367,139.58,139.46,10.975]
[1641676622560,2.27022367,139.58,139.47,1.27143422]
[1641676622860,2.72856578,139.58,139.45,7.16948666]
[1641676623057,8.0,139.57,139.45,7.16948666]
[1641676623258,8.0,139.57,139.46,1.27143422]
[1641676623458,27.66479,139.55,139.43,27.66479]
[1641676623657,33.35779,139.55,139.47,1.27143422]
[1641676624058,33.35779,139.55,139.49,1.27143422]
[1641676624257,5.693,139.55,139.49,1.27143422]
[1641676624457,5.693,139.55,139.45,4.0]
[1641676624657,66.9885,139.56,139.51,1.27143422]